{"text_format":"1","workbook":"xlsx","n_sheets":8,"sheets":["Prijavni obrazec za zbornico","programi","vlagatelji","banke","furs","copyrowentry","report","izpis"],"not_rendered":{"charts":0,"images":4,"macros":1,"external_links":0,"defined_names":3,"comments":0,"pivot_tables":0},"unopened":[],"bounds":{"document_bytes":16777216,"sheet_cells":100000,"rows_first":2000,"rows_last":500,"rows_between":2000,"halvings":0,"cell_chars":16384,"cell_head_chars":4096},"cells_cut":0,"cells_raw":0,"read":"whole","date_system":"1900"}

{"sheet":"Prijavni obrazec za zbornico","index":0,"n_rows":125,"n_cols":53,"rows_kept":125,"cut":false,"hidden":false,"merged":[[3,7,3,15],[124,3,127,4],[105,0,105,5],[111,1,117,3],[121,1,121,2],[120,1,120,2],[119,1,119,2],[99,0,99,5],[101,0,101,5],[103,0,103,5],[3,0,3,5],[48,1,48,5],[49,1,49,5],[50,1,50,5],[51,1,51,5],[52,1,52,5],[0,0,0,5],[1,0,1,5],[2,0,2,5],[5,0,5,5],[46,0,46,5],[32,0,32,5],[33,0,33,5],[34,0,34,5],[35,0,35,5],[6,0,6,5],[7,0,7,5],[38,4,39,4],[38,5,39,5],[8,0,8,5],[10,2,10,3],[11,0,11,1],[9,2,9,3],[38,0,39,0],[38,2,39,2],[38,3,39,3],[13,0,13,3],[14,0,14,3],[19,0,19,3],[20,0,20,3],[21,0,21,1],[22,0,22,1],[29,1,29,5],[24,1,24,5],[125,9,125,12],[38,1,39,1],[15,1,15,2],[16,1,16,2],[15,4,15,5],[16,4,16,5],[27,1,27,3],[28,1,28,3],[25,1,25,2],[25,4,25,5],[37,0,37,5],[63,4,63,5],[62,4,62,5],[64,4,64,5],[41,0,42,0],[17,0,17,5],[38,10,39,10],[38,11,39,11],[41,1,42,1],[41,2,42,2],[38,6,39,6],[70,0,70,5],[72,1,72,5],[73,1,73,5],[12,0,12,1],[38,7,38,9],[62,0,62,1],[63,0,63,1],[64,0,64,1],[62,2,63,3],[53,1,53,5],[54,1,54,5],[55,1,55,5],[56,1,56,5],[61,4,61,5],[61,0,61,1],[86,0,86,1],[86,4,86,5],[83,0,83,1],[83,4,83,5],[84,0,84,1],[84,2,85,3],[84,4,84,5],[85,0,85,1],[85,4,85,5]]}
["SKLOP A",null,null,null,null,null,null,{"$f":"IF(L15=\"\",\"\",\"Spodaj so z rdečo izpisani opisi morebitnih napak pri vnosu podatkov o vlagatelju: \")","v":""},null,null,null,null,null,null,null,null,null,null,null,null,{"$f":"ROW(A40)","v":40},1,"N","O","D","E",null,null,"P","G","H","I","J","K","AI","AJ","AK",null,null,null,null,"AP","AQ","AR"]
["1.1 PRIJAVNI OBRAZEC ZA ZBORNICO",null,null,null,null,null,null,null,null,null,null,null,null,null,null,null,null,null,null,null,null,{"$f":"U1+1","v":41},{"$f":"W$1&$V2","v":"N41"},{"$f":"X$1&$V2","v":"O41"},"D41","E41",null,null,{"$f":"AC$1&$V2","v":"P41"},"G41","H41","I41","J41","K41","AI41","AJ41","AK41",null,null,null,null,{"$f":"AP$1&$V2","v":"AP41"},"AQ41","AR41"]
["JR PUD 2021/2022",null,null,null,null,null,null,null,null,null,null,null,null,null,null,null,null,null,null,null,null,{"$f":"U1+V1","v":41},{"$f":"W$1&$V3","v":"N41"},"O41","D41","E41",null,null,"P41","G41","H41","I41","J41","K41","AI41","AJ41","AK41",null,null,null,null,"AP41","AQ41","AR41"]
["Podatki o zbornici",null,null,null,null,null,null,"Za pravilen izpis tega obrazca uporabite ukaz \"Natisni\" na koncu obrazca. \nOblika obrazca v tem delovnem listu je samo uporabniški vmesnik in ni namenjena za tisk.  "]
[]
[null,null,null,null,null,null,null,{"$f":"IF(TRIM(CLEAN(A6))=\"\",\"Vlagatelja izberite s spustnega seznama. \",\"\")","v":"Vlagatelja izberite s spustnega seznama. "}]
["Uradni naziv vlagatelja (zbornice)",null,null,null,null,null,"naziv",{"$f":"IF(AND(H6=\"\",COUNTIF(vlagatelji!A:A,A6)=0),\"Napačen naziv vlagatelja ali neupravičen vlagatelj. Vpisati je potrebno uradni polni naziv vlagatelja. \",\"\")","v":""}]
[]
["Ulica in hišna številka"]
[]
["Poštna številka",null,"Kraj",null,null,null,"dolžina matične",{"$f":"IF(AND(LEN(TRIM(CLEAN(A12)))>0,ISNUMBER(A12),OR(LEN(H15)<7,LEN(H15)>10)),\"Napačna dolžina matične številke vlagatelja. \",\"\")","v":""}]
[null,null,null,null,null,null,"napačna matična",{"$f":"IF(AND(A12<>\"\",H11=\"\",COUNTIF(vlagatelji!B:B,LEFT(H15,7))=0),\"Napačna matična številka vlagatelja ali neupravičen vlagatelj. \",\"\")","v":""}]
["Matična številka",null,null,"(SI) ","ID za DDV ali davčna številka",null,"napačna davčna",{"$f":"IF(AND(E12<>\"\",H14=\"\",COUNTIF(vlagatelji!C:C,J15)=0),\"Napačna davčna številka vlagatelja ali neupravičen vlagatelj. \",\"\")","v":""}]
[null,null,null,null,null,null,"dolžina davčne",{"$f":"IF(AND(LEN(TRIM(CLEAN(E12)))>0,J15<>0,LEN(J15)<>8),\"Napačna dolžina davčne številke vlagatelja. \",\"\")","v":""}]
["Ime in priimek zakonitega zastopnika",null,null,null,null,null,{"$f":"SUBSTITUTE(SUBSTITUTE(SUBSTITUTE(A12,\"-\",\"\"),\"–\",\"\"),\" \",\"\")","v":""},{"$f":"IF(ISNUMBER(VALUE(G15)),G15,0)","v":0},{"$f":"SUBSTITUTE(SUBSTITUTE(SUBSTITUTE(E12,\"-\",\"\"),\"–\",\"\"),\" \",\"\")","v":""},{"$f":"IF(ISNUMBER(VALUE(I15)),I15,0)","v":0},{"$f":"IF(AND(A12<>\"\",E12<>\"\",H11=\"\",H12=\"\",H14=\"\",COUNTIF(vlagatelji!C:C,E12)>0),VLOOKUP(A12,vlagatelji!B:C,2,0)-0,0)","v":0},{"$f":"H7&H11&H12&H13&H14&H16&H17&H18&H30","v":""}]
["SI 56",null,null,null,null,null,"napačen trr",{"$f":"IF(AND(TRIM(CLEAN(B16))<>\"\",H17=\"\",H18=\"\",98-(TRUNC(H19/100)*100-INT(TRUNC(H19/100)*100/97)*97)-RIGHT(H19,2)>0),\"Napačna številka TRR vlagatelja. \",\"\")","v":""}]
[null,"Številka TRR",null,null,"Banka vlagatelja oz. Uprava RS za javna plačila",null,"dolžina trr",{"$f":"IF(OR(LEN(TRIM(CLEAN(B16)))=0,LEN(G19)=15),\"\",\"Napačna dolžina številke TRR vlagatelja. \")","v":""}]
["Kontaktni podatki",null,null,null,null,null,"nedovoljeni znaki trr",{"$f":"IF(AND(TRIM(CLEAN(B16))<>\"\",H17=\"\",H19=0),\"Številka TRR vlagatelja vsebuje nedovoljene znake. \",\"\")","v":""}]
[null,null,null,null,null,null,{"$f":"SUBSTITUTE(SUBSTITUTE(SUBSTITUTE(SUBSTITUTE(SUBSTITUTE(TRIM(CLEAN(B16)),\"-\",\"\"),\"–\",\"\"),\" \",\"\"),\".\",\"\"),\",\",\"\")","v":""},{"$f":"IF(ISNUMBER(VALUE(G19)),G19,0)","v":0}]
[]
["Ime in priimek kontaktne osebe zbornice",null,null,null,null,"Tel. št. kontaktne osebe zbornice"]
[]
["Tel. št. zbornice"]
[]
[null,"Spoštujemo vašo pravico do zasebnosti in pregleda nad oddanimi podatki. E-poštni naslov bo Javni štipendijski, razvojni, invalidski in \npreživninski sklad Republike Slovenije uporabljal izključno za obveščanje o izvajanju programa »Povezava sistema poklicnega in \nstrokovnega izobraževanja s potrebami trga dela 2018-2022«."]
[null,"DOVOLIM uporabo e-poštnega naslova za \nobveščanje o izvajanju programa »Povezava \nsistema poklicnega in strokovnega izobraževanja \ns potrebami trga dela 2018-2022«",null,null,"NE DOVOLIM uporabe e-poštnega naslova za \nobveščanje o izvajanju programa »Povezava \nsistema poklicnega in strokovnega izobraževanja \ns potrebami trga dela 2018-2022«",null,null,{"$f":"IF(AA26=0,\"Izberite, ali želite, da vas obveščamo o izvajanju programa PUD 2018-2022. \",\"\")","v":"Izberite, ali želite, da vas obveščamo o izvajanju programa PUD 2018-2022. "},null,null,null,null,null,null,null,null,2,null,null,null,null,null,null,null,null,null,0]
[]
[null,null,null,null,null,null,null,{"$f":"IF(AND(TRIM(CLEAN(B28))=\"\",AA26=1),\"Vpišite elektronski naslov za obveščanje. \",\"\")","v":""}]
[null,"Elektronski naslov kontaktne osebe zbornice",null,null,null,null,null,{"$f":"IF(AA26=0,\"Ni podatka o tem, ali želite, da vas obveščamo o izvajanju programa PUD 2018-2022. \",\"\")","v":"Ni podatka o tem, ali želite, da vas obveščamo o izvajanju programa PUD 2018-2022. "}]
[null,"Vaše podatke lahko kadarkoli pregledate in zahtevate njihov popravek ali izbris oziroma prekličete osebno privolitev. To lahko \nstorite s sporočilom na e-naslov pud@sklad-kadri.si ali po telefonu 01 43 45 875.",null,null,null,null,null,{"$f":"IF(AND(AA26=1,TRIM(CLEAN(B28))=\"\"),\"Elektronski naslov za obveščanje ni vpisan. \",\"\")","v":""}]
[]
[]
["SEZNAM PRIJAVLJENIH OSEB"]
["Prijavljene osebe in delodajalce vpišite v seznam tako, da bodo urejeni po abecedi (po delodajalcih in po osebah)."]
["Za dodajanje prijavljenih oseb pritisnite gumb »Dodaj nov vnos za vajenca«. "]
["Če prijavljena oseba opravlja vajeništvo pri več različnih delodajalcih, jo je potrebno vpisati večkrat, pri vsakem delodajalcu posebej."]
[]
["Podatki o vajencih"]
["Zap. št.","Ime vajenca","Priimek vajenca","EMŠO \nvajenca","Izobraževalni program","Naziv delodajalca","Matična številka delodajalca","Št. tednov vajeništva v letniku pri tem delodajalcu po načrtu vajeništva",null,null,"Skupaj predpisano število tednov vajeništva po programu v vseh letnikih","Skupaj število tednov pri tem delodajalcu"]
[null,null,null,null,null,null,null,"1. letnik","2. letnik","3. letnik",null,null,null,"trim clean delodajalec","proper ime in priimek","emšo","vse napake skupaj","ali je EMŠO sploh številka","prazen emšo","formula za emšo","napačen EMŠO","dve osebi isti emšo","ista oseba razl. program","ni programa","napačen program","ista oseba dvakrat pri istem delod.",null,null,"matična delodajalca številka","ali je matična sploh številka","prazna matična","formula za matično","napačna matična ","šifra programa",{"$f":"CONCATENATE(\"Število različnih prijavljenih oseb (glede na EMŠO): \",ROUND(SUM(INDIRECT(AI2&\":\"&AI3)),0))","v":"Število različnih prijavljenih oseb (glede na EMŠO): 0"},{"$f":"CONCATENATE(\"Število različnih izobraževalnih programov: \",ROUND(SUM(INDIRECT(AJ2&\":\"&AJ3)),0))","v":"Število različnih izobraževalnih programov: 0"},{"$f":"CONCATENATE(\"Število različnih delodajalcev (glede na matično številko): \",ROUND(SUM(INDIRECT(AK2&\":\"&AK3)),0))","v":"Število različnih delodajalcev (glede na matično številko): 0"},"PUD isnumber","1 L","2 L","3 L","sum delodajalec","PREDP","SPI/VSŠ","predp. dolžina ni vpisana","NI v izpisu: razl. predp. dolžina za isti program","spi<3","vsš<8","predp. SPI<24","predp. VSŠ<20","delod.>predp.","manjka ime","manjka priimek"]
[{"$f":"ROW()-U$1","v":1},null,null,null,null,null,null,null,null,null,null,{"$f":"AP41","v":0},null,{"$f":"TRIM(CLEAN(F41))","v":""},{"$f":"PROPER(TRIM(CLEAN(SUBSTITUTE(SUBSTITUTE(\"x\"&B41&\" \"&C41,\"Ć\",\"Č\"),\"ć\",\"č\"))))","v":"X"},{"$f":"IF(ISNUMBER(VALUE(D41)),SUBSTITUTE(SUBSTITUTE(D41,\".\",\"\"),\",\",\"\"),\"\")","v":""},{"$f":"AZ41&BA41&R41&S41&U41&V41&W41&X41&Y41&Z41&AD41&AE41&AG41&AL41&AS41&AU41&AV41&AW41&AX41&AY41","v":"Manjka ime prijavljene osebe. \nManjka priimek prijavljene osebe. \nManjka EMŠO prijavljene osebe. \nManjka izobraževalni program. \nManjka matična številka delodajalca. \nManjka podatek \"Skupaj predpisano število tednov po programu v vseh letnikih\". \n"},{"$f":"IF(AND(LEN(D41)>0,D41<>P41),\"EMŠO prijavljene osebe vsebuje znake, ki niso številke: \"&D41&\" \n\",\"\")","v":""},{"$f":"IF(D41=\"\",\"Manjka EMŠO prijavljene osebe. \n\",\"\")","v":"Manjka EMŠO prijavljene osebe. \n"},{"$f":"IF(AND(LEN(D41)=13,R41=\"\"),RIGHT(D41,1)-MOD(11-MOD(LEFT(D41,1)*7+RIGHT(LEFT(D41,2),1)*6+RIGHT(LEFT(D41,3),1)*5+RIGHT(LEFT(D41,4),1)*4+RIGHT(LEFT(D41,5),1)*3+RIGHT(LEFT(D41,6),1)*2+RIGHT(LEFT(D41,7),1)*7+RIGHT(LEFT(D41,8),1)*6+RIGHT(LEFT(D41,9),1)*5+RIGHT(LEFT(D41,10),1)*4+RIGHT(LEFT(D41,11),1)*3+RIGHT(LEFT(D41,12),1)*2,11),11)=0,0)","v":0},{"$f":"IF(AND(R41=\"\",S41=\"\",NOT(T41)),\"Napačen EMŠO prijavljene osebe: \"&D41&\" \n\",\"\")","v":""},{"$f":"IF(AND(D41<>\"\",COUNTIFS(INDIRECT(X$2&\":\"&X$3),\"<>\"&O41,INDIRECT(Y$2&\":\"&Y$3),\"<>\",INDIRECT(Y$2&\":\"&Y$3),D41)>0),\"Za različne prijavljene osebe je vpisan isti EMŠO: \"&D41&\" \n\",\"\")","v":""},{"$f":"IF(AND(E41<>\"\",COUNTIFS(INDIRECT(Y$2&\":\"&Y$3),D41,INDIRECT(Z$2&\":\"&Z$3),\"<>\",INDIRECT(Z$2&\":\"&Z$3),\"<>\"&E41)>0),\"Za to prijavljeno osebo sta vpisana različna izobraževalna programa. \n\",\"\")","v":""},{"$f":"IF(E41=\"\",\"Manjka izobraževalni program. \n\",\"\")","v":"Manjka izobraževalni program. \n"},{"$f":"IF(AND(E41<>\"\",COUNTIF(programi!A:A,TRIM(CLEAN(E41)))=0),\"Napaka pri vnosu izobraževalnega programa. \n\",\"\")","v":""},{"$f":"IF(AND(D41<>\"\",COUNTIFS(INDIRECT(Y$2&\":\"&Y$3),D41,INDIRECT(AD$2&\":\"&AD$3),G41)>1),\"Ista oseba (EMŠO: \"&TRIM(CLEAN(D41))&\") je več kot enkrat navedena pri istem delodajalcu (\"&TRIM(CLEAN(N41))&\"). \n\",\"\")","v":""},null,null,{"$f":"IF(AND(G41<>\"\",ISNUMBER(VALUE(G41))),VALUE(SUBSTITUTE(SUBSTITUTE(G41,\".\",\"\"),\",\",\"\")),\"\")","v":""},{"$f":"IF(AND(G41<>\"\",TEXT(G41,\"#\")<>TEXT(AC41,\"#\")),\"Matična številka delodajalca vsebuje znake, ki niso številke: \"&TRIM(CLEAN(G41))&\"\n\",\"\")","v":""},{"$f":"IF(G41=\"\",\"Manjka matična številka delodajalca. \n\",\"\")","v":"Manjka matična številka delodajalca. \n"},{"$f":"IF(OR(AD41<>\"\",AE41<>\"\",AND(LEFT(G41,3)=\"100\",LEN(G41)=9)),\"\",(RIGHT(LEFT(G41,7),1)-MOD(11-MOD(LEFT(G41,1)*7+RIGHT(LEFT(G41,2),1)*6+RIGHT(LEFT(G41,3),1)*5+RIGHT(LEFT(G41,4),1)*4+RIGHT(LEFT(G41,5),1)*3+RIGHT(LEFT(G41,6),1)*2,11),10)=0)+(RIGHT(LEFT(G41,7),1)-MOD(11-MOD(LEFT(G41,1)*2+RIGHT(LEFT(G41,2),1)*3+RIGHT(LEFT(G41,3),1)*4+RIGHT(LEFT(G41,4),1)*5+RIGHT(LEFT(G41,5),1)*6+RIGHT(LEFT(G41,6),1)*7,11),10)=0)+(AND(LEFT(G41,1)-5=0,RIGHT(LEFT(G41,7),1)-MOD(10-MOD(TRUNC(LEFT(G41,1)/5)+MOD(LEFT(G41,1)*2,10)+RIGHT(LEFT(G41,2),1)+TRUNC(RIGHT(LEFT(G41,3),1)/5)+MOD(RIGHT(LEFT(G41,3),1)*2,10)+RIGHT(LEFT(G41,4),1)+TRUNC(RIGHT(LEFT(G41,5),1)/5)+MOD(RIGHT(LEFT(G41,5),1)*2,10)+RIGHT(LEFT(G41,6),1),10),10)=0))-0)","v":""},{"$f":"IF(AND(AD41=\"\",AE41=\"\",AF41=0),\"Napačna matična številka delodajalca: \"&TRIM(CLEAN(G41))&\"\n\",\"\")","v":""},{"$f":"IF(AND(X41=\"\",Y41=\"\"),VLOOKUP(TRIM(CLEAN(E41)),programi!A:B,2,0),\"\")","v":""},{"$f":"IF(D41=\"\",0,1/COUNTIF(INDIRECT(Y$2&\":\"&Y$3),D41))","v":0},{"$f":"IF(E41=\"\",0,1/COUNTIF(INDIRECT(Z$2&\":\"&Z$3),E41))","v":0},{"$f":"IF(G41=\"\",0,1/COUNTIF(INDIRECT(AD$2&\":\"&AD$3),G41))","v":0},{"$f":"IF(OR(AND(LEN(H41)>0,NOT(ISNUMBER(VALUE(H41)))),AND(LEN(I41)>0,NOT(ISNUMBER(VALUE(I41)))),AND(LEN(J41)>0,NOT(ISNUMBER(VALUE(J41)))),AND(LEN(K41)>0,NOT(ISNUMBER(VALUE(K41))))),\"Podatki o obsegu PUD/PRI vsebujejo znake, ki niso številke. V teh poljih se bo izpisala vrednost 0. \n\",\"\")","v":""},{"$f":"IF(AND(LEN(H41)>0,ISNUMBER(VALUE(H41))),ROUND(VALUE(H41),1),0)","v":0},0,0,{"$f":"AM41+AN41+AO41","v":0},{"$f":"IF(AND(LEN(K41)>0,ISNUMBER(VALUE(K41))),ROUND(VALUE(K41),1),0)","v":0},{"$f":"IF(AND(X41=\"\",Y41=\"\"),VLOOKUP(TRIM(CLEAN(E41)),programi!A:C,3,0),\"\")","v":""},{"$f":"IF(AQ41=0,\"Manjka podatek \"\"Skupaj predpisano število tednov po programu v vseh letnikih\"\". \n\",\"\")","v":"Manjka podatek \"Skupaj predpisano število tednov po programu v vseh letnikih\". \n"},{"$f":"IF(AND(AS41=\"\",COUNTIFS(INDIRECT(Z$2&\":\"&Z$3),E41,INDIRECT(AQ$2&\":\"&AQ$3),\">0\",INDIRECT(AQ$2&\":\"&AQ$3),\"<>\"&AQ41)>0),\"Za isti izobraževalni program (\"&TRIM(CLEAN(E41))&\") so navedene različne predpisane dolžine PUD/PRI. \n\",\"\")","v":""},{"$f":"IF(AND(S41=\"\",AE41=\"\",AS41=\"\",AR41=\"SPI\",SUMIFS(INDIRECT(AP$2&\":\"&AP$3),INDIRECT(Y$2&\":\"&Y$3),D41,INDIRECT(AD$2&\":\"&AD$3),G41,INDIRECT(Z$2&\":\"&Z$3),E41,INDIRECT(AR$2&\":\"&AR$3),\"SPI\")<3),\"Skupna dolžina PUD za to osebo pri delodajalcu \"&TRIM(CLEAN(N41))&\" je krajša od 3 tednov. \n\",\"\")","v":""},{"$f":"IF(AND(S41=\"\",AE41=\"\",AS41=\"\",AR41=\"VSŠ\",SUMIFS(INDIRECT(AP$2&\":\"&AP$3),INDIRECT(Y$2&\":\"&Y$3),D41,INDIRECT(AD$2&\":\"&AD$3),G41,INDIRECT(Z$2&\":\"&Z$3),E41,INDIRECT(AR$2&\":\"&AR$3),\"VSŠ\")<8),\"Skupna dolžina PRI za to osebo pri delodajalcu \"&TRIM(CLEAN(N41))&\" je krajša od 8 tednov. \n\",\"\")","v":""},{"$f":"IF(AND(AR41=\"SPI\",AS41=\"\",AQ41<24),\"Skupaj predpisana dolžina PUD po vseh letnikih je krajša od 24 tednov. \n\",\"\")","v":""},{"$f":"IF(AND(AR41=\"VSŠ\",AS41=\"\",AQ41<20),\"Skupaj predpisana dolžina PRI po vseh letnikih je krajša od 20 tednov. \n\",\"\")","v":""},{"$f":"IF(AND(S41=\"\",AS41=\"\",AU41=\"\",AV41=\"\",SUMIFS(INDIRECT(AP$2&\":\"&AP$3),INDIRECT(Y$2&\":\"&Y$3),D41,INDIRECT(Z$2&\":\"&Z$3),E41)>AQ41),\"Dolžina PUD/PRI pri delodajalcih za to osebo presega skupaj predpisano dolžino po programu v vseh letnikih. \n\",\"\")","v":""},{"$f":"IF(B41=\"\",\"Manjka ime prijavljene osebe. \n\",\"\")","v":"Manjka ime prijavljene osebe. \n"},{"$f":"IF(C41=\"\",\"Manjka priimek prijavljene osebe. \n\",\"\")","v":"Manjka priimek prijavljene osebe. \n"}]
[]
[]
[]
["1.2 IZJAVA ZBORNICE O IZPOLNJEVANJU POGOJEV JAVNEGA RAZPISA"]
[" "]
["S podpisom in žigom na tej izjavi pod kazensko in materialno odgovornostjo izjavljamo, da:"]
[]
[]
[]
[]
[null,"1.  imamo na predzadnji delovni dan v mesecu pred mesecem oddaje vloge na javni razpis poravnane vse do tega dne zapadle davke, prispevke in druge obvezne dajatve skladno z nacionalno zakonodajo; "]
[null,"2.  za stroške, ki so predmet tega javnega razpisa, nismo pridobili in nismo v postopku pridobivanja sofinanciranja istih stroškov iz drugih javnih virov, t.j. iz javnih finančnih sredstev evropskega, državnega ali občinskega proračuna; "]
[]
[null,"3.  za namen tega javnega razpisa dovoljujemo Javnemu štipendijskemu, razvojnemu, invalidskemu in preživninskemu skladu Republike Slovenije pridobitev podatkov iz uradnih evidenc; "]
[null,"4.  so vse navedbe, ki smo jih podali v tej vlogi, resnične in ustrezajo dejanskemu stanju. "]
[]
[]
[]
[]
[]
[]
["Kraj",null,"ŽIG",null,"Ime in priimek podpisnika"]
[]
["Datum",null,null,null,"Podpis"]
[]
[]
[]
["1.3 IZJAVA ZBORNICE O VPISU DIJAKOV V PROGRAME SREDNJEGA POKLICNEGA IZOBRAŽEVANJA V VAJENIŠKI OBLIKI"]
[" "]
["S podpisom in žigom na tej izjavi pod kazensko in materialno odgovornostjo izjavljamo, da:"]
[]
[null,"1. so prijavljene osebe, za katere v vlogi uveljavljamo spodbude, z delodajalci sklenile vajeniške pogodbe, ki jih je registrirala pristojna zbornica, in so v šolskem letu 2021/2022 vpisane v prvi letnik srednjega poklicnega izobraževanja v vajeniški obliki; "]
[null,"2. so v se navedbe, ki smo jih podali v vlogi, resnične in ustrezajo dejanskemu stanju. "]
[]
[]
[]
[]
[]
[]
[]
[]
[]
[]
["Kraj",null,"ŽIG",null,"Ime in priimek podpisnika"]
[]
["Datum",null,null,null,"Podpis"]
[]
[]
[]
[]
[]
[]
[]
[]
[]
[]
[]
[]
["OPREMA OVOJNICE "]
[]
["Vloga mora biti oddana v zaprti ovojnici. Oprema ovojnice mora vsebovati vidne oznake »NE ODPIRAJ - VLOGA - JAVNI RAZPIS PUD 2021/2022« ter naziv in naslov vlagatelja."]
[" "]
["Če prijavni obrazec izpolnite v elektronski obliki, se podatki za ovojnico sami prepišejo v okvir."]
[" "]
["Izrežite okvir po zunanjem robu in ga prilepite na sprednjo stran ovojnice."]
[]
[]
[]
[]
[" "]
[null,{"$f":"CONCATENATE(\"Pošiljatelj (naziv in naslov vlagatelja): \n\",TRIM(CLEAN(LEFT(A6,100))),\"\n\",TRIM(CLEAN(LEFT(A8,70))),\"\n\",TRIM(CLEAN(LEFT(A10,10))),\" \",TRIM(CLEAN(LEFT(C10,50))))","v":"Pošiljatelj (naziv in naslov vlagatelja): \n\n\n "}]
[]
[]
[]
[]
[]
[]
[]
[null,"NE ODPIRAJ -"]
[null,"VLOGA -"]
[null,"JAVNI RAZPIS PUD 2021/2022"]
[]
[]
[null,null,null,"Naslovnik: \nJavni štipendijski, razvojni, invalidski in \npreživninski sklad Republike Slovenije\nDunajska cesta 20\n1000 Ljubljana"]

{"sheet":"programi","index":1,"n_rows":14,"n_cols":3,"rows_kept":14,"cut":false,"hidden":true,"merged":[]}
["Avtokaroserist",193977,"SPI"]
["Avtoserviser",609882,"SPI"]
["Elektrikar",277536,"SPI"]
["Gastronomske in hotelske storitve",437696,"SPI"]
["Kamnosek",348054,"SPI"]
["Klepar - krovec",265034,"SPI"]
["Mehatronik operater",193683,"SPI"]
["Mizar",883575,"SPI"]
["Oblikovalec kovin - orodjar",886571,"SPI"]
["Papirničar",999640,"SPI"]
["Slikopleskar - črkoslikar",999754,"SPI"]
["Steklar",999646,"SPI"]
["Strojni mehanik",999587,"SPI"]
["Zidar",121982,"SPI"]

{"sheet":"vlagatelji","index":2,"n_rows":2,"n_cols":3,"rows_kept":2,"cut":false,"hidden":true,"merged":[]}
["Gospodarska zbornica Slovenije",5021979,73354376]
["OBRTNO-PODJETNIŠKA ZBORNICA SLOVENIJE",5147409,62841220]

{"sheet":"banke","index":3,"n_rows":17,"n_cols":2,"rows_kept":17,"cut":false,"hidden":true,"merged":[]}
[1319175000,"Addiko Bank d.d."]
[5092221000,"Banka Intesa Sanpaolo d.d."]
[5023912000,"BANKA SLOVENIJE"]
[2211254000,"BANKA SPARKASSE d.d."]
[2013649000,"BKS BANK AG, Bančna podružnica"]
[5448557000,"DELAVSKA HRANILNICA d.d. LJUBLJANA"]
[5349907000,"DEŽELNA BANKA SLOVENIJE d.d."]
[5103061000,"GORENJSKA BANKA D.D., KRANJ"]
[5624908000,"Hranilnica LON d.d., Kranj"]
[5860580000,"NOVA KREDITNA BANKA MARIBOR d.d."]
[5860571000,"NOVA LJUBLJANSKA BANKA d.d., Ljubljana"]
[5214246000,"PRIMORSKA HRANILNICA VIPAVA d.d."]
[5496527000,"Sberbank banka d.d."]
[5665493000,"SID - Slovenska izvozna in razvojna banka, d.d., Ljubljana"]
[5026237000,"SKB BANKA D.D. LJUBLJANA"]
[5446546000,"UNICREDIT BANKA SLOVENIJA d.d."]
[1572814000,"Uprava za javna plačila"]

{"sheet":"furs","index":4,"n_rows":15,"n_cols":67,"rows_kept":15,"cut":false,"hidden":true,"merged":[]}
["Furs"]
["/"]
["SI"]
[]
[]
[]
[]
[]
[]
[]
[]
[]
[]
[]
[1,2,3,4,5,6,7,8,9,10,11,12,13,14,15,16,17,18,19,20,21,22,23,24,25,26,27,28,29,30,31,32,33,34,35,36,37,38,39,40,41,42,43,44,45,46,47,48,49,50,51,52,53,54,55,56,57,58,59,60,61,62,63,64,65,66,67]

{"sheet":"copyrowentry","index":5,"n_rows":6,"n_cols":53,"rows_kept":6,"cut":false,"hidden":true,"merged":[]}
[]
[]
[]
[]
[{"$f":"ROW()-U$1","v":5},null,null,null,null,null,null,null,null,null,null,{"$f":"AP5","v":0},null,{"$f":"TRIM(CLEAN(F5))","v":""},{"$f":"PROPER(TRIM(CLEAN(SUBSTITUTE(SUBSTITUTE(\"x\"&B5&\" \"&C5,\"Ć\",\"Č\"),\"ć\",\"č\"))))","v":"X"},{"$f":"IF(ISNUMBER(VALUE(D5)),SUBSTITUTE(SUBSTITUTE(D5,\".\",\"\"),\",\",\"\"),\"\")","v":""},{"$f":"AZ5&BA5&R5&S5&U5&V5&W5&X5&Y5&Z5&AD5&AE5&AG5&AL5&AS5&AU5&AV5&AW5&AX5&AY5","v":{"$error":"#REF!"}},{"$f":"IF(AND(LEN(D5)>0,D5<>P5),\"EMŠO prijavljene osebe vsebuje znake, ki niso številke: \"&D5&\" \n\",\"\")","v":""},{"$f":"IF(D5=\"\",\"Manjka EMŠO prijavljene osebe. \n\",\"\")","v":"Manjka EMŠO prijavljene osebe. \n"},{"$f":"IF(AND(LEN(D5)=13,R5=\"\"),RIGHT(D5,1)-MOD(11-MOD(LEFT(D5,1)*7+RIGHT(LEFT(D5,2),1)*6+RIGHT(LEFT(D5,3),1)*5+RIGHT(LEFT(D5,4),1)*4+RIGHT(LEFT(D5,5),1)*3+RIGHT(LEFT(D5,6),1)*2+RIGHT(LEFT(D5,7),1)*7+RIGHT(LEFT(D5,8),1)*6+RIGHT(LEFT(D5,9),1)*5+RIGHT(LEFT(D5,10),1)*4+RIGHT(LEFT(D5,11),1)*3+RIGHT(LEFT(D5,12),1)*2,11),11)=0,0)","v":0},{"$f":"IF(AND(R5=\"\",S5=\"\",NOT(T5)),\"Napačen EMŠO prijavljene osebe: \"&D5&\" \n\",\"\")","v":""},{"$f":"IF(AND(D5<>\"\",COUNTIFS(INDIRECT(X$2&\":\"&X$3),\"<>\"&O5,INDIRECT(Y$2&\":\"&Y$3),\"<>\",INDIRECT(Y$2&\":\"&Y$3),D5)>0),\"Za različne prijavljene osebe je vpisan isti EMŠO: \"&D5&\" \n\",\"\")","v":{"$error":"#REF!"}},{"$f":"IF(AND(E5<>\"\",COUNTIFS(INDIRECT(Y$2&\":\"&Y$3),D5,INDIRECT(Z$2&\":\"&Z$3),\"<>\",INDIRECT(Z$2&\":\"&Z$3),\"<>\"&E5)>0),\"Za to prijavljeno osebo sta vpisana različna izobraževalna programa. \n\",\"\")","v":{"$error":"#REF!"}},{"$f":"IF(E5=\"\",\"Manjka izobraževalni program. \n\",\"\")","v":"Manjka izobraževalni program. \n"},{"$f":"IF(AND(E5<>\"\",COUNTIF(programi!A:A,TRIM(CLEAN(E5)))=0),\"Napaka pri vnosu izobraževalnega programa. \n\",\"\")","v":""},{"$f":"IF(AND(D5<>\"\",COUNTIFS(INDIRECT(Y$2&\":\"&Y$3),D5,INDIRECT(AD$2&\":\"&AD$3),G5)>1),\"Ista oseba (EMŠO: \"&TRIM(CLEAN(D5))&\") je več kot enkrat navedena pri istem delodajalcu (\"&TRIM(CLEAN(N5))&\"). \n\",\"\")","v":{"$error":"#REF!"}},null,null,{"$f":"IF(AND(G5<>\"\",ISNUMBER(VALUE(G5))),VALUE(SUBSTITUTE(SUBSTITUTE(G5,\".\",\"\"),\",\",\"\")),\"\")","v":""},{"$f":"IF(AND(G5<>\"\",TEXT(G5,\"#\")<>TEXT(AC5,\"#\")),\"Matična številka delodajalca vsebuje znake, ki niso številke: \"&TRIM(CLEAN(G5))&\"\n\",\"\")","v":""},{"$f":"IF(G5=\"\",\"Manjka matična številka delodajalca. \n\",\"\")","v":"Manjka matična številka delodajalca. \n"},{"$f":"IF(OR(AD5<>\"\",AE5<>\"\",AND(LEFT(G5,3)=\"100\",LEN(G5)=9)),\"\",(RIGHT(LEFT(G5,7),1)-MOD(11-MOD(LEFT(G5,1)*7+RIGHT(LEFT(G5,2),1)*6+RIGHT(LEFT(G5,3),1)*5+RIGHT(LEFT(G5,4),1)*4+RIGHT(LEFT(G5,5),1)*3+RIGHT(LEFT(G5,6),1)*2,11),10)=0)+(RIGHT(LEFT(G5,7),1)-MOD(11-MOD(LEFT(G5,1)*2+RIGHT(LEFT(G5,2),1)*3+RIGHT(LEFT(G5,3),1)*4+RIGHT(LEFT(G5,4),1)*5+RIGHT(LEFT(G5,5),1)*6+RIGHT(LEFT(G5,6),1)*7,11),10)=0)+(AND(LEFT(G5,1)-5=0,RIGHT(LEFT(G5,7),1)-MOD(10-MOD(TRUNC(LEFT(G5,1)/5)+MOD(LEFT(G5,1)*2,10)+RIGHT(LEFT(G5,2),1)+TRUNC(RIGHT(LEFT(G5,3),1)/5)+MOD(RIGHT(LEFT(G5,3),1)*2,10)+RIGHT(LEFT(G5,4),1)+TRUNC(RIGHT(LEFT(G5,5),1)/5)+MOD(RIGHT(LEFT(G5,5),1)*2,10)+RIGHT(LEFT(G5,6),1),10),10)=0))-0)","v":""},{"$f":"IF(AND(AD5=\"\",AE5=\"\",AF5=0),\"Napačna matična številka delodajalca: \"&TRIM(CLEAN(G5))&\"\n\",\"\")","v":""},{"$f":"IF(AND(X5=\"\",Y5=\"\"),VLOOKUP(TRIM(CLEAN(E5)),programi!A:B,2,0),\"\")","v":""},{"$f":"IF(D5=\"\",0,1/COUNTIF(INDIRECT(Y$2&\":\"&Y$3),D5))","v":0},{"$f":"IF(E5=\"\",0,1/COUNTIF(INDIRECT(Z$2&\":\"&Z$3),E5))","v":0},{"$f":"IF(G5=\"\",0,1/COUNTIF(INDIRECT(AD$2&\":\"&AD$3),G5))","v":0},{"$f":"IF(OR(AND(LEN(H5)>0,NOT(ISNUMBER(VALUE(H5)))),AND(LEN(I5)>0,NOT(ISNUMBER(VALUE(I5)))),AND(LEN(J5)>0,NOT(ISNUMBER(VALUE(J5)))),AND(LEN(K5)>0,NOT(ISNUMBER(VALUE(K5))))),\"Podatki o obsegu PUD/PRI vsebujejo znake, ki niso številke. V teh poljih se bo izpisala vrednost 0. \n\",\"\")","v":""},{"$f":"IF(AND(LEN(H5)>0,ISNUMBER(VALUE(H5))),ROUND(VALUE(H5),1),0)","v":0},0,0,{"$f":"AM5+AN5+AO5","v":0},{"$f":"IF(AND(LEN(K5)>0,ISNUMBER(VALUE(K5))),ROUND(VALUE(K5),1),0)","v":0},{"$f":"IF(AND(X5=\"\",Y5=\"\"),VLOOKUP(TRIM(CLEAN(E5)),programi!A:C,3,0),\"\")","v":""},{"$f":"IF(AQ5=0,\"Manjka podatek \"\"Skupaj predpisano število tednov po programu v vseh letnikih\"\". \n\",\"\")","v":"Manjka podatek \"Skupaj predpisano število tednov po programu v vseh letnikih\". \n"},{"$f":"IF(AND(AS5=\"\",COUNTIFS(INDIRECT(Z$2&\":\"&Z$3),E5,INDIRECT(AQ$2&\":\"&AQ$3),\">0\",INDIRECT(AQ$2&\":\"&AQ$3),\"<>\"&AQ5)>0),\"Za isti izobraževalni program (\"&TRIM(CLEAN(E5))&\") so navedene različne predpisane dolžine PUD/PRI. \n\",\"\")","v":{"$error":"#REF!"}},{"$f":"IF(AND(S5=\"\",AE5=\"\",AS5=\"\",AR5=\"SPI\",SUMIFS(INDIRECT(AP$2&\":\"&AP$3),INDIRECT(Y$2&\":\"&Y$3),D5,INDIRECT(AD$2&\":\"&AD$3),G5,INDIRECT(Z$2&\":\"&Z$3),E5,INDIRECT(AR$2&\":\"&AR$3),\"SPI\")<3),\"Skupna dolžina PUD za to osebo pri delodajalcu \"&TRIM(CLEAN(N5))&\" je krajša od 3 tednov. \n\",\"\")","v":{"$error":"#REF!"}},{"$f":"IF(AND(S5=\"\",AE5=\"\",AS5=\"\",AR5=\"VSŠ\",SUMIFS(INDIRECT(AP$2&\":\"&AP$3),INDIRECT(Y$2&\":\"&Y$3),D5,INDIRECT(AD$2&\":\"&AD$3),G5,INDIRECT(Z$2&\":\"&Z$3),E5,INDIRECT(AR$2&\":\"&AR$3),\"VSŠ\")<8),\"Skupna dolžina PRI za to osebo pri delodajalcu \"&TRIM(CLEAN(N5))&\" je krajša od 8 tednov. \n\",\"\")","v":{"$error":"#REF!"}},{"$f":"IF(AND(AR5=\"SPI\",AS5=\"\",AQ5<24),\"Skupaj predpisana dolžina PUD po vseh letnikih je krajša od 24 tednov. \n\",\"\")","v":""},{"$f":"IF(AND(AR5=\"VSŠ\",AS5=\"\",AQ5<20),\"Skupaj predpisana dolžina PRI po vseh letnikih je krajša od 20 tednov. \n\",\"\")","v":""},{"$f":"IF(AND(S5=\"\",AS5=\"\",AU5=\"\",AV5=\"\",SUMIFS(INDIRECT(AP$2&\":\"&AP$3),INDIRECT(Y$2&\":\"&Y$3),D5,INDIRECT(Z$2&\":\"&Z$3),E5)>AQ5),\"Dolžina PUD/PRI pri delodajalcih za to osebo presega skupaj predpisano dolžino po programu v vseh letnikih. \n\",\"\")","v":{"$error":"#REF!"}},{"$f":"IF(B5=\"\",\"Manjka ime prijavljene osebe. \n\",\"\")","v":"Manjka ime prijavljene osebe. \n"},{"$f":"IF(C5=\"\",\"Manjka priimek prijavljene osebe. \n\",\"\")","v":"Manjka priimek prijavljene osebe. \n"}]
[null,null,null,null,null,null,null,null,null,null,null,null,null,null,null,null,null,null,null,null,null,null,null,null,null,null,null,null,{"$f":"TEXT(AC5,\"#\")","v":""}]

{"sheet":"report","index":6,"n_rows":15,"n_cols":11,"rows_kept":15,"cut":false,"hidden":true,"merged":[[14,1,14,2],[14,3,14,4],[14,5,14,6],[14,7,14,9],[14,10,14,11],[10,10,10,11],[12,1,12,6],[12,7,13,9],[12,10,13,11],[13,1,13,2],[13,3,13,4],[13,5,13,6],[10,1,10,8],[6,1,6,2],[6,3,6,4],[6,6,6,7],[6,9,6,12],[5,1,5,4],[5,5,5,6],[7,1,7,2],[7,3,7,4],[7,6,7,7],[7,9,7,12],[9,1,9,8],[9,10,9,11]]}
[]
[]
[]
[]
[]
[null,"Podatki o vajencu št. ",null,null,null,{"$f":"TRUNC((ROW()-V$37)/12)+1","v":1}]
[]
[null,"Ime vajenca",null,"Priimek vajenca",null,null,"EMŠO vajenca",null,null,"Izobraževalni program"]
[]
[]
[null,"Naziv delodajalca",null,null,null,null,null,null,null,null,"Matična št. delodajalca"]
[]
[null,"Št. tednov vajeništva v letniku pri tem delodajalcu po načrtu vajeništva",null,null,null,null,null,"Skupaj število tednov \npri tem delodajalcu",null,null,"Skupaj predpisano število tednov vajeništva po programu v vseh letnikih"]
[null,"1. letnik",null,"2. letnik",null,"3. letnik"]
[null,{"$f":"ROUND(V15,1)","v":0},null,{"$f":"ROUND(W15,1)","v":0},null,{"$f":"ROUND(X15,1)","v":0},null,{"$f":"ROUND(B15,1)+ROUND(D15,1)+ROUND(F15,1)","v":0},null,null,{"$f":"ROUND(Y15,1)","v":0}]

{"sheet":"izpis","index":7,"n_rows":123,"n_cols":25,"rows_kept":123,"cut":false,"hidden":true,"merged":[[9,0,9,2],[9,4,9,7],[50,0,50,13],[69,8,69,13],[58,1,58,12],[59,1,59,12],[60,1,60,12],[61,1,61,12],[62,1,62,12],[67,0,67,5],[69,0,69,5],[68,0,68,5],[38,1,38,2],[38,9,38,12],[12,0,12,3],[11,0,11,3],[10,4,10,7],[11,6,11,8],[46,3,46,4],[46,5,46,6],[27,1,27,6],[28,1,28,6],[44,1,44,6],[44,7,45,9],[0,0,0,13],[1,0,1,13],[2,0,2,13],[6,0,6,13],[8,0,8,13],[5,0,5,13],[7,0,7,13],[3,0,3,3],[122,7,125,12],[38,3,38,4],[67,8,67,13],[45,1,45,2],[42,10,42,11],[41,10,41,11],[101,0,101,13],[103,0,103,13],[70,8,70,13],[70,0,70,5],[68,8,68,13],[68,6,69,7],[38,6,38,7],[99,0,99,13],[55,1,55,12],[56,1,56,12],[109,2,115,8],[15,7,15,14],[19,0,19,7],[17,0,17,3],[21,0,21,3],[20,0,20,7],[15,0,15,1],[16,0,16,1],[16,2,16,5],[15,2,15,5],[24,1,24,12],[22,0,22,3],[16,7,16,14],[25,2,25,6],[19,10,19,13],[25,8,25,12],[37,1,37,4],[37,5,37,6],[57,1,57,12],[52,0,52,13],[45,3,45,4],[45,5,45,6],[39,3,39,4],[54,1,54,12],[46,7,46,9],[39,9,39,12],[39,6,39,7],[42,1,42,8],[29,1,29,12],[13,0,13,8],[20,10,20,13],[14,0,14,7],[39,1,39,2],[41,1,41,8],[46,10,46,11],[44,10,45,11],[46,1,46,2],[93,0,93,5],[93,8,93,13],[81,1,81,12],[82,1,82,12],[83,1,83,12],[84,1,84,12],[85,1,85,12],[78,1,78,12],[79,1,79,12],[80,1,80,12],[72,0,72,13],[90,0,90,5],[90,8,90,13],[91,6,92,7],[74,0,74,12],[76,0,76,12],[91,0,91,5],[91,8,91,13],[92,0,92,5],[92,8,92,13]]}
[{"$f":"'Prijavni obrazec za zbornico'!A1:N1","v":"SKLOP A"},null,null,null,null,null,null,null,null,null,null,null,null,null,null,null,null,null,null,null,{"$f":"ROW(A37)","v":37},1]
[{"$f":"'Prijavni obrazec za zbornico'!A2:N2","v":"1.1 PRIJAVNI OBRAZEC ZA ZBORNICO"},null,null,null,null,null,null,null,null,null,null,null,null,null,null,null,null,null,null,null,null,{"$f":"U1+1","v":38}]
[{"$f":"'Prijavni obrazec za zbornico'!A3:N3","v":"JR PUD 2021/2022"},null,null,null,null,null,null,null,null,null,null,null,null,null,null,null,null,null,null,null,null,{"$f":"U1+12*V1","v":49}]
[{"$f":"'Prijavni obrazec za zbornico'!A4:D4","v":"Podatki o zbornici"}]
[]
[{"$f":"TRIM(CLEAN('Prijavni obrazec za zbornico'!A6))","v":""}]
[{"$f":"'Prijavni obrazec za zbornico'!A7","v":"Uradni naziv vlagatelja (zbornice)"}]
[{"$f":"TRIM(CLEAN('Prijavni obrazec za zbornico'!A8))","v":""}]
[{"$f":"'Prijavni obrazec za zbornico'!A9","v":"Ulica in hišna številka"}]
[{"$f":"TRIM(CLEAN('Prijavni obrazec za zbornico'!A10))","v":""},null,null,null,{"$f":"TRIM(CLEAN('Prijavni obrazec za zbornico'!C10))","v":""}]
[{"$f":"'Prijavni obrazec za zbornico'!A11","v":"Poštna številka"},null,null,null,{"$f":"'Prijavni obrazec za zbornico'!E11","v":0}]
[{"$f":"TRIM(CLEAN('Prijavni obrazec za zbornico'!A12))","v":""},null,null,null,null,{"$f":"TRIM(CLEAN('Prijavni obrazec za zbornico'!D12))","v":""},{"$f":"TRIM(CLEAN('Prijavni obrazec za zbornico'!E12))","v":""}]
[{"$f":"'Prijavni obrazec za zbornico'!A13","v":"Matična številka"},null,null,null,null,{"$f":"'Prijavni obrazec za zbornico'!D13","v":"(SI) "},{"$f":"'Prijavni obrazec za zbornico'!E13","v":"ID za DDV ali davčna številka"}]
[{"$f":"TRIM(CLEAN('Prijavni obrazec za zbornico'!A14))","v":""}]
[{"$f":"'Prijavni obrazec za zbornico'!A15","v":"Ime in priimek zakonitega zastopnika"}]
[{"$f":"'Prijavni obrazec za zbornico'!A16","v":"SI 56"},null,{"$f":"TRIM(CLEAN('Prijavni obrazec za zbornico'!B16))","v":""},null,null,null,null,{"$f":"TRIM(CLEAN('Prijavni obrazec za zbornico'!E16))","v":""}]
[null,null,{"$f":"'Prijavni obrazec za zbornico'!B17","v":"Številka TRR"},null,null,null,null,{"$f":"'Prijavni obrazec za zbornico'!E17","v":"Banka vlagatelja oz. Uprava RS za javna plačila"}]
[{"$f":"'Prijavni obrazec za zbornico'!A18","v":"Kontaktni podatki"}]
[]
[{"$f":"TRIM(CLEAN('Prijavni obrazec za zbornico'!A20))","v":""},null,null,null,null,null,null,null,null,null,{"$f":"TRIM(CLEAN('Prijavni obrazec za zbornico'!F20))","v":""}]
[{"$f":"'Prijavni obrazec za zbornico'!A21","v":"Ime in priimek kontaktne osebe zbornice"},null,null,null,null,null,null,null,null,null,{"$f":"'Prijavni obrazec za zbornico'!F21","v":"Tel. št. kontaktne osebe zbornice"}]
[{"$f":"TRIM(CLEAN('Prijavni obrazec za zbornico'!A22))","v":""}]
[{"$f":"'Prijavni obrazec za zbornico'!A23","v":"Tel. št. zbornice"}]
[]
[null,{"$f":"'Prijavni obrazec za zbornico'!B25","v":"Spoštujemo vašo pravico do zasebnosti in pregleda nad oddanimi podatki. E-poštni naslov bo Javni štipendijski, razvojni, invalidski in \npreživninski sklad Republike Slovenije uporabljal izključno za obveščanje o izvajanju programa »Povezava sistema poklicnega in \nstrokovnega izobraževanja s potrebami trga dela 2018-2022«."}]
[null,1,"DOVOLIM uporabo e-poštnega naslova za \nobveščanje o izvajanju programa »Povezava \nsistema poklicnega in strokovnega izobraževanja \ns potrebami trga dela 2018-2022«",null,null,null,null,null,"NE DOVOLIM uporabe e-poštnega naslova za \nobveščanje o izvajanju programa »Povezava \nsistema poklicnega in strokovnega izobraževanja \ns potrebami trga dela 2018-2022«"]
[]
[null,{"$f":"TRIM(CLEAN('Prijavni obrazec za zbornico'!B28))","v":""}]
[null,{"$f":"'Prijavni obrazec za zbornico'!B29:G29","v":"Elektronski naslov kontaktne osebe zbornice"}]
[null,{"$f":"'Prijavni obrazec za zbornico'!B30:M30","v":"Vaše podatke lahko kadarkoli pregledate in zahtevate njihov popravek ali izbris oziroma prekličete osebno privolitev. To lahko \nstorite s sporočilom na e-naslov pud@sklad-kadri.si ali po telefonu 01 43 45 875."}]
[]
[]
[{"$f":"'Prijavni obrazec za zbornico'!A33","v":"SEZNAM PRIJAVLJENIH OSEB"}]
[{"$f":"'Prijavni obrazec za zbornico'!A34","v":"Prijavljene osebe in delodajalce vpišite v seznam tako, da bodo urejeni po abecedi (po delodajalcih in po osebah)."}]
[{"$f":"'Prijavni obrazec za zbornico'!A35","v":"Za dodajanje prijavljenih oseb pritisnite gumb »Dodaj nov vnos za vajenca«. "}]
[{"$f":"'Prijavni obrazec za zbornico'!A36","v":"Če prijavljena oseba opravlja vajeništvo pri več različnih delodajalcih, jo je potrebno vpisati večkrat, pri vsakem delodajalcu posebej."}]
[null,null,null,null,null,null,null,null,null,null,null,null,null,null,null,null,null,null,null,null,null,{"$f":"ROW()","v":37}]
[null,"Podatki o vajencu št. ",null,null,null,{"$f":"TRUNC((ROW()-V$37)/12)+1","v":1}]
[null,"",null,"",null,null,"",null,null,""]
[null,"Ime vajenca",null,"Priimek vajenca",null,null,"EMŠO vajenca",null,null,"Izobraževalni program"]
[]
[null,"",null,null,null,null,null,null,null,null,""]
[null,"Naziv delodajalca",null,null,null,null,null,null,null,null,"Matična št. delodajalca (oz. KMG-MID)"]
[]
[null,"Št. tednov vajeništva v letniku pri tem delodajalcu po načrtu vajeništva",null,null,null,null,null,"Skupaj število tednov \npri tem delodajalcu",null,null,"Skupaj predpisano število tednov vajeništva po programu v vseh letnikih"]
[null,"1. letnik",null,"2. letnik",null,"3. letnik"]
[null,{"$f":"ROUND(V47,1)","v":0},null,{"$f":"ROUND(W47,1)","v":0},null,{"$f":"ROUND(X47,1)","v":0},null,{"$f":"ROUND(B47,1)+ROUND(D47,1)+ROUND(F47,1)","v":0},null,null,{"$f":"ROUND(Y47,1)","v":0},null,null,null,null,null,null,null,null,null,null,0,0,0,0]
[]
[]
[]
[{"$f":"'Prijavni obrazec za zbornico'!A45","v":"1.2 IZJAVA ZBORNICE O IZPOLNJEVANJU POGOJEV JAVNEGA RAZPISA"}]
[" "]
[{"$f":"'Prijavni obrazec za zbornico'!A47:N47","v":"S podpisom in žigom na tej izjavi pod kazensko in materialno odgovornostjo izjavljamo, da:"}]
[]
[null,{"$f":"'Prijavni obrazec za zbornico'!B49","v":0}]
[null,{"$f":"'Prijavni obrazec za zbornico'!B50","v":0}]
[null,{"$f":"'Prijavni obrazec za zbornico'!B51","v":0}]
[null,{"$f":"'Prijavni obrazec za zbornico'!B52","v":"1.  imamo na predzadnji delovni dan v mesecu pred mesecem oddaje vloge na javni razpis poravnane vse do tega dne zapadle davke, prispevke in druge obvezne dajatve skladno z nacionalno zakonodajo; "}]
[null,{"$f":"'Prijavni obrazec za zbornico'!B53","v":"2.  za stroške, ki so predmet tega javnega razpisa, nismo pridobili in nismo v postopku pridobivanja sofinanciranja istih stroškov iz drugih javnih virov, t.j. iz javnih finančnih sredstev evropskega, državnega ali občinskega proračuna; "}]
[null,{"$f":"'Prijavni obrazec za zbornico'!B54","v":0}]
[null,{"$f":"'Prijavni obrazec za zbornico'!B55","v":"3.  za namen tega javnega razpisa dovoljujemo Javnemu štipendijskemu, razvojnemu, invalidskemu in preživninskemu skladu Republike Slovenije pridobitev podatkov iz uradnih evidenc; "}]
[null,{"$f":"'Prijavni obrazec za zbornico'!B56","v":"4.  so vse navedbe, ki smo jih podali v tej vlogi, resnične in ustrezajo dejanskemu stanju. "}]
[null,{"$f":"'Prijavni obrazec za zbornico'!B57","v":0}]
[{"$f":"'Prijavni obrazec za zbornico'!A58","v":0}]
[]
[]
[]
[{"$f":"TRIM(CLEAN('Prijavni obrazec za zbornico'!A62))","v":""},null,null,null,null,null,null,null,{"$f":"'Prijavni obrazec za zbornico'!E62","v":0}]
[{"$f":"'Prijavni obrazec za zbornico'!A63","v":"Kraj"},null,null,null,null,null,{"$f":"'Prijavni obrazec za zbornico'!C63","v":"ŽIG"},null,{"$f":"TRIM(CLEAN('Prijavni obrazec za zbornico'!E63))","v":"Ime in priimek podpisnika"}]
[""]
[{"$f":"'Prijavni obrazec za zbornico'!A65","v":"Datum"},null,null,null,null,null,null,null,{"$f":"'Prijavni obrazec za zbornico'!E65","v":"Podpis"}]
[]
[{"$f":"'Prijavni obrazec za zbornico'!A70:N70","v":" "}]
[]
[{"$f":"'Prijavni obrazec za zbornico'!A69","v":"1.3 IZJAVA ZBORNICE O VPISU DIJAKOV V PROGRAME SREDNJEGA POKLICNEGA IZOBRAŽEVANJA V VAJENIŠKI OBLIKI"}]
[]
[{"$f":"'Prijavni obrazec za zbornico'!A71:F71","v":"S podpisom in žigom na tej izjavi pod kazensko in materialno odgovornostjo izjavljamo, da:"}]
[]
[null,{"$f":"'Prijavni obrazec za zbornico'!B73","v":"1. so prijavljene osebe, za katere v vlogi uveljavljamo spodbude, z delodajalci sklenile vajeniške pogodbe, ki jih je registrirala pristojna zbornica, in so v šolskem letu 2021/2022 vpisane v prvi letnik srednjega poklicnega izobraževanja v vajeniški obliki; "}]
[null,{"$f":"'Prijavni obrazec za zbornico'!B74","v":"2. so v se navedbe, ki smo jih podali v vlogi, resnične in ustrezajo dejanskemu stanju. "}]
[null,{"$f":"'Prijavni obrazec za zbornico'!B75","v":0}]
[null,{"$f":"'Prijavni obrazec za zbornico'!B76","v":0}]
[null,{"$f":"'Prijavni obrazec za zbornico'!B77","v":0}]
[null,{"$f":"'Prijavni obrazec za zbornico'!B78","v":0}]
[null,{"$f":"'Prijavni obrazec za zbornico'!B79","v":0}]
[null,{"$f":"'Prijavni obrazec za zbornico'!B80","v":0}]
[{"$f":"'Prijavni obrazec za zbornico'!A81","v":0}]
[]
[]
[]
[{"$f":"TRIM(CLEAN('Prijavni obrazec za zbornico'!A84))","v":""},null,null,null,null,null,null,null,{"$f":"'Prijavni obrazec za zbornico'!E84","v":0}]
[{"$f":"'Prijavni obrazec za zbornico'!A85","v":"Kraj"},null,null,null,null,null,{"$f":"'Prijavni obrazec za zbornico'!C85","v":"ŽIG"},null,{"$f":"TRIM(CLEAN('Prijavni obrazec za zbornico'!E85))","v":"Ime in priimek podpisnika"}]
[""]
[{"$f":"'Prijavni obrazec za zbornico'!A87","v":"Datum"},null,null,null,null,null,null,null,{"$f":"'Prijavni obrazec za zbornico'!E87","v":"Podpis"}]
[]
[]
[]
[{"$f":"'Prijavni obrazec za zbornico'!A100","v":"OPREMA OVOJNICE "}]
[]
[{"$f":"'Prijavni obrazec za zbornico'!A102:N102","v":"Vloga mora biti oddana v zaprti ovojnici. Oprema ovojnice mora vsebovati vidne oznake »NE ODPIRAJ - VLOGA - JAVNI RAZPIS PUD 2021/2022« ter naziv in naslov vlagatelja."}]
[" "]
[{"$f":"'Prijavni obrazec za zbornico'!A104:N104","v":"Če prijavni obrazec izpolnite v elektronski obliki, se podatki za ovojnico sami prepišejo v okvir."}]
[" "]
[{"$f":"'Prijavni obrazec za zbornico'!A106:N106","v":"Izrežite okvir po zunanjem robu in ga prilepite na sprednjo stran ovojnice."}]
[]
[]
[]
[]
[" "]
[null,null,{"$f":"CONCATENATE(\"Pošiljatelj (naziv in naslov vlagatelja): \n\",TRIM(CLEAN(LEFT('Prijavni obrazec za zbornico'!A6,100))),\"\n\",TRIM(CLEAN(LEFT('Prijavni obrazec za zbornico'!A8,70))),\"\n\",TRIM(CLEAN(LEFT('Prijavni obrazec za zbornico'!A10,10))),\" \",TRIM(CLEAN(LEFT('Prijavni obrazec za zbornico'!C10,50))))","v":"Pošiljatelj (naziv in naslov vlagatelja): \n\n\n "}]
[]
[]
[]
[]
[]
[]
[]
[null,null,{"$f":"'Prijavni obrazec za zbornico'!B120","v":"NE ODPIRAJ -"}]
[null,null,{"$f":"'Prijavni obrazec za zbornico'!B121","v":"VLOGA -"}]
[null,null,{"$f":"'Prijavni obrazec za zbornico'!B122","v":"JAVNI RAZPIS PUD 2021/2022"}]
[]
[]
[null,null,null,null,null,null,null,"Naslovnik: \nJavni štipendijski, razvojni, invalidski in \npreživninski sklad Republike Slovenije\nDunajska cesta 20\n1000 Ljubljana"]